Cogmind - Beta 17 @@@ ROGUE MODE // 2026.06.23 @ 18:24:51 Player: D4-RLM Result: Destroyed by G-47 Trooper with Particle Gun Performance ------------- Evolutions (2) 1000 Regions Visited (5) 1000 Robots Destroyed (43) 215 Value Destroyed (946) 946 Prototype IDs (23) 460 Alien Tech Used (0) 0 Bonus (300) 300 TOTAL SCORE: 3921 Bonus ------- Aligned with FarCom 300 Cogmind --------- Core Integrity 0/550 Matter 201/300 Energy 100/100 System Corruption 0% Temperature Cool (18) Movement Core (350) Ox6 Location -8/Materials Parts ------- > --- POWER (1) -------- (None) > --- PROPULSION (4) --- (None) > --- UTILITY (4) ------ Large Storage Unit Structural Scanner > --- WEAPON (2) ------- (None) > --- INVENTORY (15) --- Ion Engine Large Storage Unit EM Pulse Gun Assault Rifle Light Assault Rifle Mining Laser Peak State ------------ > --- POWER ------------ Light Nuclear Core > --- PROPULSION ------- Light Treads Light Treads Wheel Compact Wheel > --- UTILITY ---------- Large Storage Unit Advanced Visual Processing Unit Advanced Terrain Scan Processor > --- WEAPON ----------- Advanced Assault Cannon Advanced Assault Cannon > --- INVENTORY -------- Ion Engine Improved Ion Engine Large Storage Unit Sensor Array EM Pulse Gun Guided Plasma Cannon Assault Rifle Grenade Launcher Mining Laser Maul [Rating: 24] Favorites ----------- Power Backup Power I Engine Backup Power I Power Core Light Nuclear Core Propulsion Light Treads Treads Light Treads Wheel Compact Wheel Utility Seismic Detector Device Seismic Detector Storage Large Storage Unit Processor Advanced Terrain Scan Processor Weapon EM Pulse Gun Energy Gun EM Pulse Gun Ballistic Gun Light Assault Rifle Ballistic Cannon Advanced Assault Cannon Launcher Grenade Launcher Impact Weapon Maul Build | -11 -10 -10 -10 -9 -8 ------- Run | Yrd Mat Min Exi Min Mat Slots Evolved 4 | . . . . . 4 Power . | . . . . . . Propulsion 2 | . . . . . 2 Utility 2 | . . . . . 2 Weapon . | . . . . . . Parts Attached 25 | 7 7 . . 1 10 Power 2 | 1 1 . . . . Engine 1 | 1 . . . . . Core 1 | . 1 . . . . Reactor . | . . . . . . Propulsion 5 | 2 1 . . . 2 Treads 3 | 2 1 . . . . Leg . | . . . . . . Wheel 2 | . . . . . 2 Hover . | . . . . . . Flight . | . . . . . . Utility 7 | 2 1 . . 1 3 Device 2 | 1 . . . . 1 Storage 2 | 1 1 . . . . Processor 3 | . . . . 1 2 Hackware . | . . . . . . Protection . | . . . . . . Artifact . | . . . . . . Weapon 11 | 2 4 . . . 5 Energy Gun 2 | 1 1 . . . . Energy Cannon . | . . . . . . Ballistic Gun 3 | 1 2 . . . . Ballistic Cannon 4 | . . . . . 4 Launcher 1 | . 1 . . . . Special Weapon . | . . . . . . Impact Weapon 1 | . . . . . 1 Slashing Weapon . | . . . . . . Piercing Weapon . | . . . . . . Special Melee Weapon . | . . . . . . Unidentified Prototypes . | . . . . . . Parts Lost 14 | . 3 . . 1 10 Power 1 | . . . . . 1 Propulsion 5 | . 1 . . . 4 Utility 2 | . . . . 1 1 Weapon 6 | . 2 . . . 4 Highest Loss Streak 6 | . 2 . . 1 6 To Critical Strikes 1 | . . . . 1 . Average Backups 8 | 3 6 12 13 13 7 Power 1 | . 1 2 2 2 1 Propulsion 1 | 1 2 2 2 2 . Utility 1 | . . 3 3 2 1 Weapon 3 | . 2 5 6 7 4 Tool/Special . | . . . . . . Unused Backups 9 | . . . . . 9 Power 2 | . . . . . 2 Propulsion . | . . . . . . Utility 2 | . . . . . 2 Weapon 5 | . . . . . 5 Tool/Special . | . . . . . . Average Slot Usage (%) 89 | . 96 100 100 100 51 Engine 9 | . 9 14 14 14 . Core 1 | . 2 . . . 2 Treads 23 | . 27 28 28 28 6 Wheel 1 | . . . . . 6 Device 11 | . 14 14 14 2 4 Storage 12 | . 14 14 14 14 7 Processor 1 | . . . . 11 6 Energy Gun 8 | . 9 14 14 14 . Ballistic Gun 12 | . 17 14 14 9 . Ballistic Cannon 3 | . . . . . 15 Peak Build Rating 24 | 7 9 8 9 9 24 Average Rating 8 | 5 7 8 8 8 13 On Entrance 6 | . 7 8 8 9 9 Avg Prop Armor Cover (%) 15 | . . . . . 15 Naked Turns 15 | . . . . . 15 Heaviest Build 37 | 12 28 26 26 27 37 Greatest Support 40 | 40 40 40 40 40 26 Greatest Overweight (x) 10 | . 1 . . . 10 Average Overweight (x) . | . . . . . 2 Largest Inventory Capacity 15 | 8 15 15 15 15 15 Average Capacity 12 | 7 12 15 15 15 12 Most Carried 14 | 4 12 13 14 14 13 Average Carried 8 | 3 6 12 13 13 7 Final Capacity 15 | 8 15 15 15 15 15 Final Carried 14 | 4 12 13 14 14 6 Class Distribution -------------------- 100% | Mutant Dominant Class ---------------- Mutant | -10/Materials Mutant | -10/Mines Mutant | -10/Exiles Mutant | -9/Mines Mutant | -8/Materials Resources | -11 -10 -10 -10 -9 -8 ----------- Run | Yrd Mat Min Exi Min Mat Matter Collected 992 | 98 357 81 . 55 401 Remotely . | . . . . . . Salvage Created 944 | 61 545 . . 34 304 Parts 75 | 7 39 . . 8 21 Haulers Intercepted . | . . . . . . Recyclers Shooed . | . . . . . . Parts Field Recycled . | . . . . . . Retrieved Matter . | . . . . . . Parts Self-Destructed . | . . . . . . Prevented . | . . . . . . Parts Restored . | . . . . . . Kills | -11 -10 -10 -10 -9 -8 ------- Run | Yrd Mat Min Exi Min Mat Combat Hostiles Destroyed 31 | . 12 . . 8 11 Guns 9 | . 9 . . . . Cannons 7 | . . . . . 7 AOE 15 | . 3 . . 8 4 Classes Destroyed 11 | 1 6 . . . 4 Worker 1 | . 1 . . . . Builder 3 | . . . . . 3 Tunneler 3 | 3 . . . . . Recycler 1 | . 1 . . . . Operator 2 | . 2 . . . . Watcher 2 | . 1 . . . 1 Swarmer 15 | . 3 . . 8 4 Grunt 13 | . 9 . . . 4 Duelist 1 | . . . . . 1 Sentry 1 | . . . . . 1 Hunter 1 | . . . . . 1 Best Kill Streak 7 | 1 4 . . 4 7 Combat Bots Only 4 | . 4 . . 4 4 Max Kills in Single Turn 4 | 1 1 . . 2 4 Gunslinging . | . . . . . . Exploded 3 | . 1 . . 2 3 Melee . | . . . . . . Uniques/NPCs Destroyed . | . . . . . . Combat | -11 -10 -10 -10 -9 -8 -------- Run | Yrd Mat Min Exi Min Mat Hostile Shots Fired 194 | . 62 . . 16 116 Missed 47 | . 13 . . 5 29 Hits 147 | . 49 . . 11 87 Melee 12 | . . . . . 12 Projectile 135 | . 49 . . 11 75 Critical Strikes 10 | . 2 . . 1 7 Damage Taken 2237 | . 604 . . 104 1529 Core 688 | . 112 . . 16 560 Absorbed by Shields . | . . . . . . Core Remaining (%) 74 | 100 . . . 48 . Volleys Fired 111 | 9 62 . . 7 33 Largest 2 | 2 2 . . 1 2 Hottest 80 | 60 60 . . 30 80 Shots Fired 201 | 18 119 . . 7 57 Gun 134 | 18 116 . . . . Cannon 55 | . . . . . 55 Launcher 12 | . 3 . . 7 2 Special . | . . . . . . Kinetic 166 | 9 102 . . . 55 Thermal . | . . . . . . Explosive 12 | . 3 . . 7 2 Electromagnetic 23 | 9 14 . . . . Robot Hit Streak 12 | 3 12 . . 2 7 Robot Miss Streak 3 | 1 3 . . 1 2 Penetration Max . | . . . . . . Secondary Targets 2 | . 2 . . . . Max Gunslinging Chain 1 | . 1 . . . . Shots Hit Robots 140 | 11 84 . . 4 41 Core Hits 74 | 4 38 . . 8 24 Critical Kills . | . . . . . . Critical Parts Destroyed 1 | . 1 . . . . Critical Strikes 4 | . 1 . . . 3 Destroy 1 | . 1 . . . . Blast 3 | . . . . . 3 Melee Attacks 5 | . . . . . 5 Impact 5 | . . . . . 5 Slashing . | . . . . . . Piercing . | . . . . . . Sneak Attacks . | . . . . . . Combat Hostiles . | . . . . . . Follow-up Attacks . | . . . . . . Damage Inflicted 2750 | 121 836 . . 439 1354 Guns 842 | 121 721 . . . . Cannons 952 | . . . . . 952 Explosions 820 | . 115 . . 439 266 Melee 136 | . . . . . 136 Ramming . | . . . . . . Kinetic 1563 | 48 563 . . . 952 Thermal . | . . . . . . Explosive 820 | . 115 . . 439 266 Electromagnetic 231 | 73 158 . . . . Impact 136 | . . . . . 136 Slashing . | . . . . . . Piercing . | . . . . . . Highest Corruption . | . . . . . . Average Corruption . | . . . . . . Corruption Purged . | . . . . . . Corruption Blocked . | . . . . . . Overload Shots . | . . . . . . Overflow Damage 25 | . . . . 21 4 Projectiles 1 | . . . . . 1 Explosions 24 | . . . . 21 3 Melee . | . . . . . . Knockbacks 7 | . . . . . 7 Impact . | . . . . . . Kinetic 5 | . . . . . 5 Secondary 2 | . . . . . 2 Self-Inflicted Damage 67 | . 12 . . 23 32 Shots 4 | . 1 . . 1 2 Rammed . | . . . . . . Targets Rammed . | . . . . . . Kicked . | . . . . . . Crushed . | . . . . . . Highest Temperature 48 | 40 40 . . . 48 Average Temperature 12 | 15 12 . . . 10 Received Heat Transfer 924 | . 348 . . . 576 Siege Activations . | . . . . . . Martial Activations . | . . . . . . Shielding Activations . | . . . . . . Robots Disrupted . | . . . . . . Combat Hostiles . | . . . . . . Robots Corrupted . | . . . . . . Combat Hostiles . | . . . . . . Parts Fried . | . . . . . . Impact Corruptions 1 | . . . . . 1 Robots Melted . | . . . . . . Combat Hostiles . | . . . . . . Parts Melted . | . . . . . . Heat Transferred . | . . . . . . Parts Sabotaged . | . . . . . . Parts Stolen . | . . . . . . Parts Stripped . | . . . . . . Power Chain Reactions . | . . . . . . Alert | -11 -10 -10 -10 -9 -8 ------- Run | Yrd Mat Min Exi Min Mat Maximum Alert Level 1 | . . . . . 1 Low Security (%) 98 | 100 100 100 . 100 93 Level 1 1 | . . . . . 6 Level 2 . | . . . . . . Level 3 . | . . . . . . Level 4 . | . . . . . . Level 5 . | . . . . . . High Security . | . . . . . . Max Security . | . . . . . . Peak Influence 209 | 5 167 37 . 163 209 Initial 59 | . . 37 . . 59 Average 61 | . 51 3 . 92 139 Influence Increases 1065 | 15 400 . . 213 437 Destroy 0b10 Robot/C 620 | . 240 . . 160 220 Destroy 0b10 Robot/NC 60 | 15 25 . . . 20 Destroy Leader 134 | . 62 . . 20 52 Successful Hack 4 | . 4 . . . . Destroy Structure 82 | . 24 . . 33 25 Partial Spotted 15 | . 15 . . . . Lose Combat Pursuer 150 | . 30 . . . 120 Influence Decreases 955 | 15 303 97 . 60 480 Entered New Map 154 | . . 60 . . 94 Time Decay 671 | 15 283 37 . 50 286 Lost Part 130 | . 20 . . 10 100 Squads Dispatched 3 | . 2 . . . 1 Investigation . | . . . . . . Extermination . | . . . . . . Reinforcement 3 | . 2 . . . 1 Assault . | . . . . . . Garrison . | . . . . . . Intercept . | . . . . . . Searches Triggered . | . . . . . . Construction Impeded 1 | . . . . . 1 Haulers Reinforced . | . . . . . . Active Scanning Responses . | . . . . . . Cargo Convoy Interrupts . | . . . . . . Stealth | -11 -10 -10 -10 -9 -8 --------- Run | Yrd Mat Min Exi Min Mat Distress Signals 4 | . 1 . . . 3 Communications Jammed . | . . . . . . Distress Signals . | . . . . . . Times Spotted 52 | . 19 . . 8 25 Peak Tracking Total 6 | . 5 . . 4 6 Tactical Retreats 6 | . 1 . . . 5 Traps | -11 -10 -10 -10 -9 -8 ------- Run | Yrd Mat Min Exi Min Mat Traps Triggered 1 | . 1 . . . . Indirectly . | . . . . . . Trap Hack Attempts . | . . . . . . Triggered . | . . . . . . Disarmed 4 | . 4 . . . . Reprogrammed . | . . . . . . Reused . | . . . . . . Traps Extracted . | . . . . . . Installed . | . . . . . . Triggered . | . . . . . . Machines | -11 -10 -10 -10 -9 -8 ---------- Run | Yrd Mat Min Exi Min Mat Machines Disabled . | . . . . . . Max in Single Turn . | . . . . . . Machines Repaired . | . . . . . . Machines Dismantled . | . . . . . . Machines Sabotaged . | . . . . . . Overloaded Fab Kills . | . . . . . . Hacking | -11 -10 -10 -10 -9 -8 --------- Run | Yrd Mat Min Exi Min Mat Machines Accessed 6 | . 5 . 1 . . Terminals 3 | . 3 . . . . Fabricators . | . . . . . . Repair Stations 1 | . 1 . . . . Recycling Units 1 | . 1 . . . . Scanalyzers . | . . . . . . Garrison Access . | . . . . . . Total Hacks 14 | . 13 . 1 . . Successful 8 | . 7 . 1 . . Failed 6 | . 6 . . . . Catastrophic . | . . . . . . Database Lockouts . | . . . . . . Manual 2 | . 1 . 1 . . Terminals 9 | . 9 . . . . Fabricators . | . . . . . . Repair Stations 2 | . 2 . . . . Recycling Units 2 | . 2 . . . . Scanalyzers . | . . . . . . Garrison Access . | . . . . . . Terminal Hacks 5 | . 4 . 1 . . Emergency Access Points 1 | . 1 . . . . Locate Traps 2 | . 2 . . . . Disarm Traps 1 | . 1 . . . . Proto ID Catalog 1 | . . . 1 . . Fabricator Hacks . | . . . . . . Repair Station Hacks 1 | . 1 . . . . Refit 1 | . 1 . . . . Recycling Unit Hacks 2 | . 2 . . . . Report Inventory 1 | . 1 . . . . Retrieve Components 1 | . 1 . . . . Scanalyzer . | . . . . . . Garrison Access Hacks . | . . . . . . Unauthorized Hacks . | . . . . . . Terminals . | . . . . . . Fabricators . | . . . . . . Repair Stations . | . . . . . . Recycling Units . | . . . . . . Scanalyzers . | . . . . . . Garrison Access . | . . . . . . Data Cores Recovered . | . . . . . . Used . | . . . . . . Hacking Detections 2 | . 2 . . . . Full Trace Events . | . . . . . . Feedback Events . | . . . . . . Feedback Blocked . | . . . . . . Robot Schematics Acquired . | . . . . . . Robots Built . | . . . . . . Authchips . | . . . . . . Time . | . . . . . . Total Robot Build Rating . | . . . . . . Part Schematics Acquired . | . . . . . . Parts Built . | . . . . . . Authchips . | . . . . . . Time . | . . . . . . Total Part Build Rating . | . . . . . . Part Studies Acquired . | . . . . . . Parts Repaired . | . . . . . . Time . | . . . . . . Parts Recycled . | . . . . . . Recycled Matter . | . . . . . . Retrieved Matter . | . . . . . . Retrieved Components 8 | . 8 . . . . Parts Scanalyzed . | . . . . . . Part Schematics Acquired . | . . . . . . Parts Damaged . | . . . . . . Bothacking | -11 -10 -10 -10 -9 -8 ------------ Run | Yrd Mat Min Exi Min Mat Used RIF Installer . | . . . . . . Robots Hacked . | . . . . . . Non-combat . | . . . . . . Combat . | . . . . . . Robot Hacks Applied . | . . . . . . Relay Couplers Released . | . . . . . . Fabnet Peak Effective % . | . . . . . . Robots Rewired . | . . . . . . Allies Hacked . | . . . . . . Hacks Repelled . | . . . . . . Allies | -11 -10 -10 -10 -9 -8 -------- Run | Yrd Mat Min Exi Min Mat Total Allies . | . . . . . . Largest Group . | . . . . . . Highest-Rated Group . | . . . . . . Highest-Rated Ally . | . . . . . . Total Orders . | . . . . . . Ally Attacks . | . . . . . . Total Damage . | . . . . . . Kills . | . . . . . . Allies Corrupted . | . . . . . . Allies Melted . | . . . . . . Intel | -11 -10 -10 -10 -9 -8 ------- Run | Yrd Mat Min Exi Min Mat Active Infowar (turns) 2931 | 4 1623 474 385 7 438 Optics 135 | . . . . . 135 Structural 303 | . . . . . 303 Seismic 2493 | 4 1623 474 385 7 . Robot Analysis Total . | . . . . . . Derelict Logs Recovered 1 | . . 1 . . . Drone Launches . | . . . . . . Drone Recoveries . | . . . . . . Exploration | -11 -10 -10 -10 -9 -8 ------------- Run | Yrd Mat Min Exi Min Mat Turns Passed 3374 | 152 1623 474 385 108 632 Spaces Moved 1530 | 75 641 287 240 54 233 Core 109 | 12 . . . . 97 Treads 1287 | 63 641 287 240 54 2 Legs . | . . . . . . Wheels 134 | . . . . . 134 Hover . | . . . . . . Flight . | . . . . . . Fastest Speed 50 | 50 160 160 160 160 50 Average Speed 161 | 142 161 160 160 160 171 Slowest Speed 550 | 160 240 160 160 160 550 Overloaded Moves . | . . . . . . Propulsion Burnouts . | . . . . . . Robots Hopped . | . . . . . . Potential Cave-ins . | . . . . . . Cave-ins Triggered . | . . . . . . Exploration Rate (%) 35 | 4 85 55 42 19 8 Regions Visited 5 Branch Regions 3 Pre-discovered Areas 1 | . . 1 . . . Known Exits Taken . | . . . . . . Unknown Exits Taken 5 | 1 1 1 1 1 . Scrap Searched 2 | . . 1 . 1 . Spaces Dug 1 | . . . . . 1 Terrain Destroyed 83 | . 25 . . 33 25 Melee 1 | . . . . . 1 Projectile 14 | . . . . . 14 AOE 68 | . 25 . . 33 10 Terrain Rammed . | . . . . . . Walls Destroyed . | . . . . . . Machines Disabled . | . . . . . . Actions | -11 -10 -10 -10 -9 -8 --------- Run | Yrd Mat Min Exi Min Mat Total 2233 | 101 1126 302 241 67 396 Wait 521 | 7 395 14 . 1 104 Move 1525 | 74 640 286 239 53 233 Hop . | . . . . . . Pick Up 19 | 4 9 1 1 1 3 Fast Attach 18 | 7 5 . . . 6 Attach 7 | . 4 . . 1 2 Detach 4 | . 4 . . . . Swap 15 | . 5 . . 4 6 Drop 6 | . 2 . . . 4 Fire 111 | 9 62 . . 7 33 Melee 5 | . . . . . 5 Ram . | . . . . . . Kick . | . . . . . . Crush . | . . . . . . Escape Stasis . | . . . . . . Rewire 2 | . . 1 1 . . Trap . | . . . . . . Miscellaneous . | . . . . . . Route ------- -11/Scrapyard -10/Materials (discovered 4 exits: [*Mat x2] / [*Min] / [*Sub]) -10/Mines (discovered 2 exits: [*Mat] / *Exi) -10/Exiles -9/Mines -8/Materials History --------- Turn | Location | Event 13 | -11/Scrapyard | Discovered new exit (range 16) 153 | -11/Scrapyard | Entered Materials 303 | -10/Materials | Build established: Mutant 692 | -10/Materials | Discovered new exit (range 16) 837 | -10/Materials | Discovered new exit (range 9) 1092 | -10/Materials | Discovered new exit (range 16) 1488 | -10/Materials | Discovered new exit (range 15) 1776 | -10/Materials | Entered Mines 1810 | -10/Mines | Discovered new exit (range 14) 2022 | -10/Mines | Learned location of Storage (-9) 2205 | -10/Mines | Found a Scrap Suit stashed away for nefarious purposes 2242 | -10/Mines | Deemed a non-threat by the Exiles lab entrance 2244 | -10/Mines | Discovered new exit (range 5) 2250 | -10/Mines | Entered Exiles 2294 | -10/Exiles | Met 8R-AWN 2316 | -10/Exiles | Met EX-HEX 2373 | -10/Exiles | Met EX-BIN 2400 | -10/Exiles | Aligned with FarCom system 2402 | -10/Exiles | Given EX-Vault access code 2439 | -10/Exiles | Opened EX-Vault 2461 | -10/Exiles | Found Gui. Plasma Cannon 2496 | -10/Exiles | Warned to stay clear of 0b10 Research branches 2614 | -10/Exiles | Discovered new exit (range 14) 2635 | -10/Exiles | Left Exiles lab with Gui. Plasma Cannon 2635 | -10/Exiles | Entered Mines 2711 | -9/Mines | Discovered new exit (range 9) 2720 | -9/Mines | Core integrity fell below 50% 2743 | -9/Mines | Entered Materials 2743 | -8/Materials | Evolved 4 slots: Propulsion x2, Utility x2 3010 | -8/Materials | Released all parts (2) 3011 | -8/Materials | Core integrity fell below 50% 3034 | -8/Materials | Lost 6 parts (1p3n2w) 3371 | -8/Materials | Core integrity fell below 20% 3375 | -8/Materials | Destroyed by G-47 Trooper with Particle Gun Last Messages --------------- 03180_ Acquired 6 matter. 03186_ Acquired 9 matter. 03197_ Acquired 28 matter. 03212_ R-06 Scavenger collects Particle Gun. 03213_ Acquired 5 matter. 03215_ R-06 Scavenger collects Lgt. Nuclear Core. 03233_ K-01 Serf collects debris. 03242_ Acquired Lgt. Assault Rifle. 03244_ K-01 Serf collects debris. 03273_ K-01 Serf cleans the Nuclear Reactor. 03322_ Acquired 6 matter. 03339_ Acquired 5 matter. 03343_ K-01 Serf destroyed. 03343_ Critical hit (Burn: +37). 03349_ K-01 Serf collects debris. 03355_ Acquired 32 matter. 03357_ K-01 Serf collects debris. 03366_ G-50 Soldier knocked back. 03367_ Adv. Assault Cannon destroyed. Map ----- +----------------------------------------------------+ | ?????????????????????????????????????????????????? | | ?????????????????????????????????????????????????? | | ?????????????????????????????????????????????????? | | ?????????????????????????????????????????????????? | | ?????????????????????????????????????????????????? | | ?????????????????????????????????????????????????? | | ?????????????????????????????????????????????????? | | ?????????????????????????????????????????????????? | | ???????????????????+?????????????????????????????? | | ??????????????????? ?????????????????????????????? | | ??????????????????? ?????????????????????????????? | | ??????????????????# ?????????????????????????????? | | ??????????????????# #????????????????????????????? | | ?????????????????## ????????????????????????????? | | ?????????????????## #????????????????????????????? | | ?????????????????## #????????????????????????????? | | ?????????????????## #????????????????????????????? | | ??????? ?????????## #????????????????????????????? | | ???????? ???????## #########g???????????????????? | | ?????????? ?????## ######### ???????????????????? | | ??????# ### ## # ???????????????????? | | ??############+#### ## """ [# ???????????????????? | | ?? k + """ # ???????????????????? | | ???? %# """ # ???????????????????? | | ????????? g;g "" + ???????????????????? | | ????????????????## g/ @ # ????????????????? | | ????????????????## *!############????????????????? | | ????????????????## % # ##????????????????? | | ????????????????## = # ##????????????????? | | ????????????????## # ##????????????????? | | ????????????????## # ##????????????????? | | ????????????????## # ##?#########??????? | | ????????????????## %" """ """ ##?#########??????? | | ????????????????##% # """ """ ##?#!![[ ##??????? | | ???????????????### # """ """ ##?#! [[ [##??????? | | ???????????????### *############## [## | | ???????????????## ############# ######### | | ???????????????## = | | ???????????????## ! | | ???????????????## | ! | | ???????????????## ############################ | | ???????????????##################################? | | ???????????????#########?????????????????????????? | | ?????????????????????????????????????????????????? | | | | | | | | | | | | | +----------------------------------------------------+ Best States ------------- Heat Dissipation 31 Energy Generation 14 Energy Capacity 160 Matter Stores 300 Matter Capacity 300 Sight Range 20 Terrain Scan Density 210 Evasion (%) 50 Targeting Accuracy 5 Recoil Reduction 2 Item Schematics ----------------- None Robot Schematics ------------------ None Fabricated ------------ Nothing Repaired ---------- Nothing Studied --------- None Alien Tech Used ----------------- None Achievements -------------- Fitting Room Challenges ------------ None Game ------ Seed GrenadePotentialMaterializer Manual? 0 Play Time 00:38:00 Cumulative 26.7 hours Start 2026.06.23 @ 15:23:43 End 2026.06.23 @ 18:24:51 Sessions 3 Manual Loads 0 Difficulty Rogue Special Mode None Game No. 37 Rogue 33 Adventurer 4 Explorer 0 Win Type - Total 0 Types 0/0/0/0/0/0/0/0/0/0 Lore% 9 Gallery% 12 Achievement% 14 Wizard Run 0 Options --------- Layout 1 ASCII 0 Keyboard 1 Movement Numpad Keybinds 0 Fullscreen 1 Font 24/Smallcaps Map View 25x17 Zoom Use 14% Tactical HUD 1 Map Filters NONE Filters NONE Steam 1 RUN: a51fb118-591a-46b5-aca2-dddd91afcf09